[Event "GEO-ch 1st League 2021"]
[Site "Tbilisi"]
[Date "2021.04.03"]
[Round "6.3"]
[White "Qalichava, Akaki"]
[Black "Arabidze, Meri"]
[Result "1-0"]
[ECO "B48"]
[WhiteElo "1877"]
[BlackElo "2437"]
[Annotator "ChessBase"]
[PlyCount "117"]
[EventDate "2021.03.29"]
[EventType "swiss"]
[EventCountry "GEO"]
[SourceTitle "playchess.com"]
[Source "ChessBase"]
[SourceQuality "1"]
[TimeControl "5400+30"]

1. e4 {[%emt 0:00:00]} c5 {[%emt 0:00:00]} 2. Nf3 {[%emt 0:00:00]} e6 {[%emt 0:00:00]} 3. d4 {[%emt 0:00:00]} cxd4 4. Nxd4 {[%emt 0:00:00]} Nc6 {[%emt 0:00:00]} 5. Nc3 {[%emt 0:00:00]} a6 {[%emt 0:00:08]} 6. Be3 {[%emt 0:00:11]} Nf6 {[%emt 0:00:20]} 7. Qd2 {[%emt 0:09:14]} Qc7 {[%emt 0:00:59]} 8. f3 {[%emt 0:00:32]} Be7 {[%emt 0:00:10]} 9. O-O-O {[%emt 0:00:53]} O-O {[%emt 0:00:06]} 10. g4 {[%emt 0:00:45]} b5 {[%emt 0:00:06]} 11. g5 {[%emt 0:02:07]} Nh5 {[%emt 0:00:03]} 12. Nce2 {[%emt 0:00:20]} Rd8 {[%emt 0:00:26]} 13. Ng3 {[%emt 0:01:36]} Nxd4 {[%emt 0:03:06]} 14. Bxd4 {[%emt 0:02:59]} Nf4 {[%emt 0:02:33]} 15. h4 {[%emt 0:08:25]} Bf8 {[%emt 0:29:57]} 16. Bb6 {[%emt 0:16:04]} Qxb6 {[%emt 0:02:24]} 17. Qxf4 {[%emt 0:02:22]} d5 {[%emt 0:14:03]} 18. e5 {[%emt 0:09:16]} Qa5 {[%emt 0:06:36]} 19. Bd3 {[%emt 0:16:53]} Qxa2 {[%emt 0:05:47]} 20. Nh5 {[%emt 0:03:50]} Ra7 {[%emt 0:02:54]} 21. Nf6+ {[%emt 0:02:21]} Kh8 {[%emt 0:00:10]} 22. Nxh7 {[%emt 0:06:18]} Bc5 {[%emt 0:00:42]} 23. g6 {[%emt 0:03:50]} fxg6 {[%emt 0:21:49]} 24. Nf6 {[%emt 0:00:38]} Qa1+ {[%emt 0:03:16]} 25. Kd2 {[%emt 0:00:05]} Qxb2 {[%emt 0:00:25]} 26. h5 {[%emt 0:00:27]} Qb4+ {[%emt 0:02:03]} 27. Qxb4 {[%emt 0:00:37]} Bxb4+ {[%emt 0:00:01]} 28. c3 {[%emt 0:00:41]} g5 {[%emt 0:00:09]} 29. cxb4 {[%emt 0:01:50]} gxf6 {[%emt 0:00:05]} 30. exf6 {[%emt 0:00:03]} Rf7 {[%emt 0:00:42]} 31. Rhg1 {[%emt 0:00:49]} Rxf6 {[%emt 0:04:42]} 32. Rxg5 {[%emt 0:00:15]} Rg8 {[%emt 0:00:16]} 33. Rxg8+ {[%emt 0:00:52]} Kxg8 {[%emt 0:00:01]} 34. Rc1 {[%emt 0:00:11]} Rf8 {[%emt 0:01:44]} 35. f4 {[%emt 0:00:49]} Bd7 {[%emt 0:01:04]} 36. Ke3 {[%emt 0:00:21]} Kg7 {[%emt 0:00:37]} 37. h6+ {[%emt 0:00:29]} Kf6 {[%emt 0:00:22]} 38. Rg1 {[%emt 0:00:33]} Be8 {[%emt 0:00:20]} 39. h7 {[%emt 0:01:03]} Bf7 {[%emt 0:00:06]} 40. Kd4 {[%emt 0:00:17]} Rc8 {[%emt 0:00:26]} 41. Rg5 {[%emt 0:00:26]} Rh8 {[%emt 0:01:07]} 42. Kc5 {[%emt 0:00:56]} Rb8 {[%emt 0:00:27]} 43. Rg1 {[%emt 0:00:49]} e5 {[%emt 0:00:38]} 44. fxe5+ {[%emt 0:01:05]} Kxe5 {[%emt 0:00:01]} 45. Rf1 {[%emt 0:01:24]} Be6 {[%emt 0:00:43]} 46. Bg6 {[%emt 0:00:18]} d4 {[%emt 0:00:51]} 47. Re1+ {[%emt 0:02:06]} Kf6 {[%emt 0:00:03]} 48. Kxd4 {[%emt 0:00:10]} Kxg6 {[%emt 0:00:41]} 49. Rxe6+ {[%emt 0:00:29]} Kxh7 {[%emt 0:00:02]} 50. Kc5 {[%emt 0:00:18]} Rc8+ {[%emt 0:00:43]} 51. Kb6 {[%emt 0:00:12]} Kg7 {[%emt 0:00:58]} 52. Kxa6 {[%emt 0:00:15]} Kf7 {[%emt 0:00:10]} 53. Re5 {[%emt 0:00:31]} Ra8+ {[%emt 0:00:55]} 54. Kxb5 {[%emt 0:00:05]} Kf6 {[%emt 0:00:17]} 55. Re1 {[%emt 0:00:51]} Rb8+ {[%emt 0:00:13]} 56. Kc5 {[%emt 0:00:03]} Rc8+ {[%emt 0:00:08]} 57. Kd6 {[%emt 0:00:05]} Rb8 {[%emt 0:00:38]} 58. Rf1+ {[%emt 0:00:05]} Kg6 {[%emt 0:00:05]} 59. Rb1 {[%emt 0:00:03]} 1-0

[Event "GEO-ch 1st League 2021"]
[Site "Tbilisi"]
[Date "2021.04.03"]
[Round "6.5"]
[White "Volkov, Nika"]
[Black "Petriashvili, Nikoloz"]
[Result "0-1"]
[ECO "E65"]
[WhiteElo "2084"]
[BlackElo "2425"]
[Annotator "ChessBase"]
[PlyCount "112"]
[EventDate "2021.03.29"]
[EventType "swiss"]
[EventCountry "GEO"]
[SourceTitle "playchess.com"]
[Source "ChessBase"]
[SourceQuality "1"]
[TimeControl "5400+30"]

1. g3 {[%emt 0:00:06]} c5 {[%emt 0:00:00]} 2. c4 {[%emt 0:00:10]} g6 {[%emt 0:00:00]} 3. Bg2 {[%emt 0:00:05]} Bg7 {[%emt 0:00:00]} 4. Nf3 {[%emt 0:00:15]} Nc6 {[%emt 0:00:00]} 5. O-O {[%emt 0:00:21]} d6 {[%emt 0:00:02]} 6. e3 {[%emt 0:00:21]} Nf6 {[%emt 0:02:39]} 7. d4 {[%emt 0:00:14]} O-O {[%emt 0:00:07]} 8. Nc3 {[%emt 0:00:03]} Bg4 {[%emt 0:10:39]} 9. h3 {[%emt 0:01:22]} Bxf3 {[%emt 0:00:15]} 10. Bxf3 {[%emt 0:00:02]} Nd7 {[%emt 0:00:02]} 11. Ne2 {[%emt 0:03:37]} Qb6 {[%emt 0:00:08]} 12. Bxc6 {[%emt 0:18:09]} bxc6 {[%emt 0:00:08]} 13. b3 {[%emt 0:00:12]} a5 {[%emt 0:12:19]} 14. Rb1 {[%emt 0:00:34]} a4 {[%emt 0:01:45]} 15. Bb2 {[%emt 0:04:44]} axb3 {[%emt 0:00:31]} 16. axb3 {[%emt 0:00:50]} Rfb8 {[%emt 0:06:19]} 17. Bc3 {[%emt 0:05:29]} cxd4 {[%emt 0:19:36]} 18. Bxd4 {[%emt 0:07:18]} Bxd4 {[%emt 0:05:10]} 19. Nxd4 {[%emt 0:00:08]} Ne5 {[%emt 0:00:47]} 20. f4 {[%emt 0:00:37]} Nd7 {[%emt 0:01:35]} 21. Qf3 {[%emt 0:00:03]} Ra6 {[%emt 0:01:09]} 22. Ra1 {[%emt 0:04:38]} c5 {[%emt 0:04:16]} 23. Nb5 {[%emt 0:10:05]} Nf6 {[%emt 0:00:34]} 24. Rxa6 {[%emt 0:03:02]} Qxa6 {[%emt 0:00:28]} 25. e4 {[%emt 0:00:01]} Qc6 {[%emt 0:01:53]} 26. e5 {[%emt 0:11:35]} Qxf3 27. Rxf3 {[%emt 0:00:01]} dxe5 {[%emt 0:00:08]} 28. fxe5 {[%emt 0:00:03]} Nd7 {[%emt 0:00:03]} 29. Re3 {[%emt 0:00:09]} e6 {[%emt 0:00:48]} 30. Kf2 {[%emt 0:00:28]} Ra8 {[%emt 0:01:41]} 31. g4 {[%emt 0:00:15]} Ra2+ {[%emt 0:00:45]} 32. Kg3 {[%emt 0:00:10]} Rd2 {[%emt 0:01:57]} 33. h4 {[%emt 0:00:48]} h6 {[%emt 0:00:05]} 34. Kf4 {[%emt 0:01:34]} Kf8 {[%emt 0:00:05]} 35. Nc3 {[%emt 0:04:46]} Ke7 {[%emt 0:01:13]} 36. Ne4 {[%emt 0:00:30]} Rh2 {[%emt 0:01:08]} 37. Kg3 {[%emt 0:03:12]} Rh1 {[%emt 0:00:36]} 38. Nf2 {[%emt 0:01:09]} Rg1+ {[%emt 0:00:42]} 39. Kf3 {[%emt 0:00:56]} Kd8 {[%emt 0:02:14]} 40. Nh3 {[%emt 0:02:13]} Rf1+ {[%emt 0:00:33]} 41. Kg2 {[%emt 0:00:44]} Rb1 {[%emt 0:00:07]} 42. Nf2 {[%emt 0:01:40]} Rb2 {[%emt 0:01:01]} 43. Kg3 {[%emt 0:00:36]} Ke7 {[%emt 0:00:54]} 44. Kf3 {[%emt 0:00:51]} Rd2 {[%emt 0:00:11]} 45. Kg3 {[%emt 0:01:23]} Rb2 {[%emt 0:01:33]} 46. Kf3 {[%emt 0:00:08]} Kd8 {[%emt 0:00:16]} 47. Nd1 {[%emt 0:02:04]} Rb1 {[%emt 0:00:46]} 48. Rd3 {[%emt 0:00:53]} Ke7 {[%emt 0:00:39]} 49. Ke4 {[%emt 0:00:27]} Ke8 {[%emt 0:02:34]} 50. Kf4 {[%emt 0:00:30]} g5+ {[%emt 0:00:55]} 51. hxg5 {[%emt 0:00:07]} hxg5+ {[%emt 0:00:01]} 52. Ke4 {[%emt 0:00:01]} Ke7 {[%emt 0:00:26]} 53. Ne3 {[%emt 0:01:02]} Rb2 {[%emt 0:00:02]} 54. Nd1 {[%emt 0:04:33]} Rg2 {[%emt 0:01:31]} 55. Re3 {[%emt 0:01:18]} Rxg4+ {[%emt 0:01:24]} 56. Kd3 {[%emt 0:00:02]} Rf4 {[%emt 0:23:20]} 0-1

[Event "GEO-ch 1st League 2021"]
[Site "Tbilisi"]
[Date "2021.04.03"]
[Round "6.6"]
[White "Mindiashvili, Tengiz"]
[Black "Adamia, Jaba"]
[Result "1-0"]
[ECO "B40"]
[WhiteElo "1923"]
[BlackElo "1899"]
[Annotator "ChessBase"]
[PlyCount "57"]
[EventDate "2021.03.29"]
[EventType "swiss"]
[EventCountry "GEO"]
[SourceTitle "playchess.com"]
[Source "ChessBase"]
[SourceQuality "1"]
[TimeControl "5400+30"]

1. e4 {[%emt 0:00:00]} c5 {[%emt 0:00:00]} 2. Nf3 {[%emt 0:00:00]} e6 {[%emt 0:00:00]} 3. c3 {[%emt 0:00:00]} d5 {[%emt 0:00:00]} 4. e5 {[%emt 0:00:00]} d4 {[%emt 0:00:00]} 5. cxd4 cxd4 {[%emt 0:00:08]} 6. Bd3 {[%emt 0:00:10]} Nc6 {[%emt 0:06:30]} 7. Na3 {[%emt 0:00:11]} Nge7 {[%emt 0:02:04]} 8. Be4 {[%emt 0:01:51]} Nd5 {[%emt 0:22:22]} 9. d3 {[%emt 0:01:59]} Be7 {[%emt 0:04:51]} 10. O-O {[%emt 0:04:39]} O-O {[%emt 0:02:09]} 11. Nb5 {[%emt 0:03:38]} Ndb4 {[%emt 0:21:23]} 12. a3 {[%emt 0:08:13]} Qa5 {[%emt 0:04:51]} 13. Nbxd4 {[%emt 0:01:31]} Nxd4 {[%emt 0:00:38]} 14. Nxd4 {[%emt 0:00:04]} Qxe5 {[%emt 0:00:29]} 15. Nf3 {[%emt 0:00:18]} Qd6 {[%emt 0:00:11]} 16. axb4 {[%emt 0:23:15]} f5 {[%emt 0:00:07]} 17. Bd2 {[%emt 0:05:44]} fxe4 {[%emt 0:02:55]} 18. dxe4 {[%emt 0:00:02]} Qb6 {[%emt 0:10:45]} 19. Qa4 {[%emt 0:08:40]} Rd8 {[%emt 0:10:28]} 20. Be3 {[%emt 0:02:43]} Qxb4 {[%emt 0:00:24]} 21. Qxb4 {[%emt 0:00:19]} Bxb4 {[%emt 0:00:05]} 22. Rxa7 {[%emt 0:01:13]} Rxa7 {[%emt 0:00:13]} 23. Bxa7 {[%emt 0:00:02]} Bd7 {[%emt 0:00:19]} 24. Rd1 {[%emt 0:02:52]} Rc8 {[%emt 0:00:07]} 25. Ne5 {[%emt 0:00:32]} Ba4 {[%emt 0:00:23]} 26. Ra1 {[%emt 0:00:34]} Rc2 {[%emt 0:08:28]} 27. Nd3 {[%emt 0:03:05]} Ba5 {[%emt 0:02:09]} 28. Rxa4 {[%emt 0:00:32]} Rd2 {[%emt 0:00:04]} 29. g3 {[%emt 0:00:40]} 1-0

[Event "GEO-ch 1st League 2021"]
[Site "Tbilisi"]
[Date "2021.04.03"]
[Round "6.7"]
[White "Bagaturov, Giorgi"]
[Black "Tskipurishvili, Daviti"]
[Result "1-0"]
[ECO "E12"]
[WhiteElo "2431"]
[BlackElo "1807"]
[Annotator "ChessBase"]
[PlyCount "67"]
[EventDate "2021.03.29"]
[EventType "swiss"]
[EventCountry "GEO"]
[SourceTitle "playchess.com"]
[Source "ChessBase"]
[SourceQuality "1"]
[TimeControl "5400+30"]

1. Nf3 {[%emt 0:00:00]} Nf6 {[%emt 0:03:02]} 2. c4 {[%emt 0:00:12]} e6 {[%emt 0:00:03]} 3. d4 {[%emt 0:00:16]} b6 {[%emt 0:00:10]} 4. a3 {[%emt 0:00:13]} a5 {[%emt 0:00:39]} 5. Nc3 {[%emt 0:00:28]} Bb7 {[%emt 0:00:04]} 6. Qc2 {[%emt 0:04:11]} d5 {[%emt 0:01:41]} 7. cxd5 {[%emt 0:00:15]} Nxd5 {[%emt 0:00:42]} 8. e4 {[%emt 0:00:41]} Nxc3 {[%emt 0:00:23]} 9. bxc3 {[%emt 0:00:07]} Be7 {[%emt 0:01:00]} 10. Bb5+ {[%emt 0:00:18]} c6 {[%emt 0:03:47]} 11. Bd3 {[%emt 0:00:11]} Nd7 {[%emt 0:00:42]} 12. O-O {[%emt 0:00:35]} O-O {[%emt 0:00:11]} 13. e5 {[%emt 0:05:45]} h6 {[%emt 0:00:46]} 14. Be4 {[%emt 0:03:19]} Qc7 {[%emt 0:01:01]} 15. a4 {[%emt 0:15:36]} c5 {[%emt 0:03:59]} 16. Ba3 {[%emt 0:05:15]} Rfe8 {[%emt 0:00:34]} 17. Bxb7 {[%emt 0:05:22]} Qxb7 {[%emt 0:00:03]} 18. Nd2 {[%emt 0:02:00]} Qd5 {[%emt 0:03:20]} 19. Qe4 {[%emt 0:02:52]} Rac8 {[%emt 0:03:00]} 20. Rfd1 {[%emt 0:02:30]} cxd4 {[%emt 0:05:31]} 21. cxd4 {[%emt 0:00:21]} Bxa3 {[%emt 0:00:48]} 22. Rxa3 {[%emt 0:02:09]} Nb8 {[%emt 0:00:39]} 23. Qg4 {[%emt 0:05:01]} Red8 {[%emt 0:02:01]} 24. Rg3 {[%emt 0:02:31]} g6 {[%emt 0:00:01]} 25. Nf1 {[%emt 0:16:08]} Nc6 {[%emt 0:03:38]} 26. Ne3 {[%emt 0:12:27]} Qd7 {[%emt 0:00:20]} 27. d5 {[%emt 0:02:44]} exd5 {[%emt 0:01:52]} 28. Qf4 {[%emt 0:01:23]} Qe6 {[%emt 0:02:14]} 29. Ng4 {[%emt 0:00:22]} h5 {[%emt 0:01:50]} 30. Nf6+ {[%emt 0:01:08]} Kf8 {[%emt 0:00:41]} 31. Nh7+ {[%emt 0:02:13]} Ke7 {[%emt 0:00:54]} 32. Rf3 {[%emt 0:03:06]} Nxe5 {[%emt 0:01:54]} 33. Qg5+ {[%emt 0:02:38]} Kd7 {[%emt 0:00:41]} 34. Re3 {[%emt 0:01:08]} 1-0

[Event "GEO-ch 1st League 2021"]
[Site "Tbilisi"]
[Date "2021.04.03"]
[Round "6.8"]
[White "Tsotsonava, Elene"]
[Black "Tutisani, Noe"]
[Result "0-1"]
[ECO "B40"]
[WhiteElo "1805"]
[BlackElo "2427"]
[Annotator "ChessBase"]
[PlyCount "64"]
[EventDate "2021.03.29"]
[EventType "swiss"]
[EventCountry "GEO"]
[SourceTitle "playchess.com"]
[Source "ChessBase"]
[SourceQuality "1"]
[TimeControl "5400+30"]

1. e4 {[%emt 0:00:00]} c5 {[%emt 0:00:00]} 2. Nf3 {[%emt 0:00:15]} e6 {[%emt 0:00:00]} 3. d4 {[%emt 0:00:06]} cxd4 {[%emt 0:00:00]} 4. Nxd4 {[%emt 0:00:04]} Nf6 {[%emt 0:00:07]} 5. Nc3 {[%emt 0:00:13]} Bb4 {[%emt 0:00:06]} 6. e5 {[%emt 0:00:30]} Nd5 {[%emt 0:00:07]} 7. Bd2 {[%emt 0:00:10]} Bxc3 {[%emt 0:00:13]} 8. bxc3 {[%emt 0:01:38]} d6 {[%emt 0:00:08]} 9. exd6 {[%emt 0:14:23]} Qxd6 {[%emt 0:00:07]} 10. Bd3 {[%emt 0:02:12]} O-O {[%emt 0:00:14]} 11. O-O {[%emt 0:00:47]} Bd7 {[%emt 0:02:05]} 12. Rb1 {[%emt 0:03:33]} Na6 {[%emt 0:01:03]} 13. Qh5 {[%emt 0:10:45]} f5 {[%emt 0:03:41]} 14. Rfe1 {[%emt 0:04:37]} Nc5 {[%emt 0:09:09]} 15. Nb3 {[%emt 0:10:08]} Na4 {[%emt 0:14:00]} 16. Rbd1 {[%emt 0:10:49]} e5 {[%emt 0:09:41]} 17. Bc4 {[%emt 0:04:25]} Nb2 {[%emt 0:01:11]} 18. Qh4 {[%emt 0:13:25]} f4 {[%emt 0:06:20]} 19. Bd3 {[%emt 0:02:45]} Bf5 {[%emt 0:00:09]} 20. Rb1 {[%emt 0:03:47]} Nxd3 {[%emt 0:02:02]} 21. cxd3 {[%emt 0:00:05]} Bxd3 {[%emt 0:00:04]} 22. Rbc1 {[%emt 0:00:15]} Nb6 {[%emt 0:02:57]} 23. Na5 {[%emt 0:02:53]} Bb5 {[%emt 0:05:05]} 24. Rcd1 {[%emt 0:03:00]} Ba4 {[%emt 0:00:18]} 25. Nb3 {[%emt 0:00:06]} Rad8 {[%emt 0:00:11]} 26. Qh5 {[%emt 0:01:22]} f3 {[%emt 0:03:24]} 27. Qg4 {[%emt 0:02:22]} Rf6 {[%emt 0:06:06]} 28. c4 {[%emt 0:01:51]} Rg6 {[%emt 0:00:37]} 29. Qxf3 {[%emt 0:00:14]} Bc6 {[%emt 0:00:05]} 30. Bb4 {[%emt 0:03:22]} Bxf3 {[%emt 0:00:35]} 31. Rxd6 {[%emt 0:00:05]} Rxg2+ {[%emt 0:00:04]} 32. Kf1 {[%emt 0:00:04]} Rxd6 {[%emt 0:00:03]} 0-1

[Event "GEO-ch 1st League 2021"]
[Site "Tbilisi"]
[Date "2021.04.03"]
[Round "6.10"]
[White "Esadze, Tamari"]
[Black "Lomaia, Diana"]
[Result "1/2-1/2"]
[ECO "B48"]
[WhiteElo "1889"]
[BlackElo "1946"]
[Annotator "ChessBase"]
[PlyCount "60"]
[EventDate "2021.03.29"]
[EventType "swiss"]
[EventCountry "GEO"]
[SourceTitle "playchess.com"]
[Source "ChessBase"]
[SourceQuality "1"]
[TimeControl "5400+30"]

1. e4 {[%emt 0:00:00]} c5 {[%emt 0:00:00]} 2. Nf3 {[%emt 0:00:00]} e6 {[%emt 0:00:00]} 3. d4 {[%emt 0:00:00]} cxd4 {[%emt 0:00:00]} 4. Nxd4 {[%emt 0:00:00]} Nc6 {[%emt 0:00:15]} 5. Nc3 {[%emt 0:00:49]} Qc7 {[%emt 0:00:22]} 6. Be2 {[%emt 0:02:48]} a6 {[%emt 0:00:29]} 7. a3 {[%emt 0:00:57]} Nf6 {[%emt 0:05:43]} 8. Be3 {[%emt 0:02:15]} Be7 {[%emt 0:03:43]} 9. O-O {[%emt 0:00:29]} O-O {[%emt 0:01:18]} 10. Qd2 {[%emt 0:08:00]} d6 {[%emt 0:02:41]} 11. f4 {[%emt 0:01:57]} Rd8 {[%emt 0:05:42]} 12. Rad1 {[%emt 0:01:34]} Bd7 {[%emt 0:05:38]} 13. Qe1 {[%emt 0:05:09]} Nxd4 {[%emt 0:06:59]} 14. Bxd4 {[%emt 0:01:33]} Bc6 {[%emt 0:08:41]} 15. Qg3 {[%emt 0:06:31]} g6 {[%emt 0:04:56]} 16. e5 {[%emt 0:09:52]} Ne4 {[%emt 0:09:05]} 17. Nxe4 {[%emt 0:09:03]} Bxe4 {[%emt 0:00:03]} 18. exd6 {[%emt 0:00:29]} Bxd6 {[%emt 0:00:38]} 19. c3 {[%emt 0:12:40]} Bc5 {[%emt 0:01:25]} 20. Qe3 {[%emt 0:00:03]} Bxd4 {[%emt 0:00:56]} 21. Rxd4 {[%emt 0:00:30]} Bc2 {[%emt 0:01:56]} 22. Rc1 {[%emt 0:03:13]} Bb3 {[%emt 0:04:25]} 23. Rb4 {[%emt 0:06:11]} Bd5 {[%emt 0:00:20]} 24. Rd1 {[%emt 0:00:23]} Rd7 {[%emt 0:01:11]} 25. Rbd4 {[%emt 0:00:48]} Rad8 {[%emt 0:00:11]} 26. c4 {[%emt 0:05:28]} Bc6 {[%emt 0:01:24]} 27. Rxd7 {[%emt 0:00:10]} Rxd7 {[%emt 0:00:12]} 28. Rxd7 {[%emt 0:00:14]} Qxd7 {[%emt 0:00:29]} 29. Qd3 {[%emt 0:02:32]} Qe7 {[%emt 0:00:22]} 30. Qd4 {[%emt 0:04:27]} f6 {[%emt 0:06:18]} 1/2-1/2

[Event "GEO-ch 1st League 2021"]
[Site "Tbilisi"]
[Date "2021.04.03"]
[Round "6.11"]
[White "Khodashneli, Shota"]
[Black "Kheladze, Ilia"]
[Result "1/2-1/2"]
[ECO "B40"]
[WhiteElo "1976"]
[BlackElo "1813"]
[Annotator "ChessBase"]
[PlyCount "114"]
[EventDate "2021.03.29"]
[EventType "swiss"]
[EventCountry "GEO"]
[SourceTitle "playchess.com"]
[Source "ChessBase"]
[SourceQuality "1"]
[TimeControl "5400+30"]

1. e4 {[%emt 0:00:00]} c5 {[%emt 0:00:00]} 2. Nf3 {[%emt 0:00:00]} e6 {[%emt 0:00:00]} 3. b3 {[%emt 0:00:00]} a6 {[%emt 0:00:24]} 4. Bb2 {[%emt 0:03:22]} Nc6 {[%emt 0:00:22]} 5. g3 {[%emt 0:04:47]} Nf6 {[%emt 0:05:24]} 6. e5 {[%emt 0:00:35]} Nd5 {[%emt 0:00:07]} 7. Bg2 {[%emt 0:00:15]} b5 {[%emt 0:01:38]} 8. O-O {[%emt 0:02:58]} Rb8 {[%emt 0:08:05]} 9. d4 {[%emt 0:01:39]} Qb6 {[%emt 0:01:43]} 10. Nbd2 {[%emt 0:22:19]} cxd4 {[%emt 0:05:20]} 11. Ne4 {[%emt 0:01:31]} Qc7 {[%emt 0:17:17]} 12. Nd6+ {[%emt 0:14:15]} Bxd6 {[%emt 0:00:49]} 13. exd6 {[%emt 0:00:01]} Qxd6 {[%emt 0:00:46]} 14. Nxd4 {[%emt 0:00:04]} O-O {[%emt 0:01:12]} 15. Nxc6 {[%emt 0:10:35]} dxc6 {[%emt 0:01:42]} 16. Qd4 {[%emt 0:03:06]} f6 {[%emt 0:00:26]} 17. c4 {[%emt 0:00:36]} bxc4 {[%emt 0:00:28]} 18. bxc4 {[%emt 0:00:22]} e5 {[%emt 0:14:19]} 19. Qd2 {[%emt 0:01:16]} Qb4 {[%emt 0:03:52]} 20. Bxd5+ {[%emt 0:00:21]} cxd5 {[%emt 0:00:21]} 21. Qxb4 {[%emt 0:00:08]} Rxb4 {[%emt 0:00:07]} 22. Ba3 {[%emt 0:00:01]} Rxc4 {[%emt 0:00:08]} 23. Bxf8 {[%emt 0:00:04]} Kxf8 {[%emt 0:00:06]} 24. Rfc1 {[%emt 0:04:00]} Bf5 {[%emt 0:00:57]} 25. Rxc4 {[%emt 0:00:18]} dxc4 {[%emt 0:00:06]} 26. Kf1 {[%emt 0:00:35]} Ke7 {[%emt 0:00:16]} 27. Ke2 {[%emt 0:05:07]} Kd6 {[%emt 0:00:15]} 28. Kd2 {[%emt 0:00:59]} Kd5 {[%emt 0:00:52]} 29. Kc3 {[%emt 0:03:53]} Bd3 {[%emt 0:02:42]} 30. Re1 {[%emt 0:09:01]} e4 {[%emt 0:08:55]} 31. h4 {[%emt 0:01:22]} f5 {[%emt 0:03:16]} 32. h5 {[%emt 0:00:20]} h6 {[%emt 0:02:02]} 33. a4 {[%emt 0:03:42]} Ke5 {[%emt 0:11:15]} 34. a5 {[%emt 0:02:14]} Kf6 {[%emt 0:04:15]} 35. Kd4 {[%emt 0:00:59]} Kg5 {[%emt 0:00:14]} 36. Rh1 {[%emt 0:00:44]} Kg4 {[%emt 0:03:11]} 37. Rh4+ {[%emt 0:02:57]} Kg5 {[%emt 0:00:05]} 38. Rh1 {[%emt 0:01:08]} Kg4 {[%emt 0:03:03]} 39. Rh4+ {[%emt 0:00:13]} Kg5 {[%emt 0:00:04]} 40. Rf4 {[%emt 0:02:11]} Be2 {[%emt 0:00:43]} 41. Rh4 {[%emt 0:00:11]} Bxh5 {[%emt 0:01:34]} 42. Kxc4 {[%emt 0:00:07]} Bf3 {[%emt 0:00:13]} 43. Kc5 {[%emt 0:00:38]} h5 {[%emt 0:00:13]} 44. Kb6 {[%emt 0:01:21]} Be2 {[%emt 0:00:08]} 45. Rh1 {[%emt 0:00:07]} f4 {[%emt 0:01:11]} 46. Rh4 {[%emt 0:01:29]} fxg3 {[%emt 0:00:17]} 47. fxg3 {[%emt 0:00:01]} Kf5 {[%emt 0:02:26]} 48. Rf4+ {[%emt 0:00:34]} Ke5 {[%emt 0:00:08]} 49. Kc5 {[%emt 0:00:14]} g5 {[%emt 0:00:21]} 50. Rf8 {[%emt 0:00:20]} Bd3 {[%emt 0:00:42]} 51. Rh8 {[%emt 0:01:41]} Be2 {[%emt 0:00:06]} 52. Rg8 {[%emt 0:00:32]} Kf5 {[%emt 0:00:28]} 53. Kd4 {[%emt 0:00:37]} Bd3 {[%emt 0:00:38]} 54. Ke3 {[%emt 0:00:23]} Kg4 {[%emt 0:01:00]} 55. Kf2 {[%emt 0:00:35]} Kf5 {[%emt 0:00:29]} 56. Rf8+ {[%emt 0:00:18]} Kg4 {[%emt 0:00:33]} 57. Rg8 {[%emt 0:00:19]} Kf5 {[%emt 0:00:07]} 1/2-1/2

[Event "GEO-ch 1st League 2021"]
[Site "Tbilisi"]
[Date "2021.04.03"]
[Round "6.12"]
[White "Gogolashvili, Giorgi"]
[Black "Kachkachishvili, Lasha"]
[Result "1/2-1/2"]
[ECO "B21"]
[WhiteElo "1448"]
[BlackElo "1681"]
[Annotator "NA"]
[PlyCount "94"]
[EventDate "2021.03.29"]
[EventType "swiss"]
[EventCountry "GEO"]
[SourceTitle "playchess.com"]
[Source "ChessBase"]
[SourceQuality "1"]
[TimeControl "5400+30"]

1. e4 {[%emt 0:00:00]} c5 {[%emt 0:00:13]} 2. d4 cxd4 {[%emt 0:00:26]} 3. c3 {[%emt 0:00:15]} Qa5 {[%emt 0:00:03]} 4. Nf3 {[%emt 0:01:17]} Nc6 {[%emt 0:00:07]} 5. Bc4 {[%emt 0:03:54]} d6 {[%emt 0:02:45]} 6. O-O {[%emt 0:02:37]} Nf6 {[%emt 0:02:46]} 7. cxd4 {[%emt 0:11:12]} Bg4 {[%emt 0:05:08]} 8. Qb3 {[%emt 0:02:49]} Nd8 {[%emt 0:03:23]} 9. Nbd2 {[%emt 0:25:43]} a6 {[%emt 0:07:58]} 10. h3 {[%emt 0:01:29]} Bxf3 {[%emt 0:01:37]} 11. Qxf3 {[%emt 0:00:36]} e5 {[%emt 0:06:11]} 12. Bb3 {[%emt 0:06:09]} exd4 {[%emt 0:07:08]} 13. Nc4 {[%emt 0:01:29]} Qc5 {[%emt 0:00:40]} 14. Bf4 {[%emt 0:01:34]} Be7 {[%emt 0:11:25]} 15. Nxd6+ {[%emt 0:03:22]} Bxd6 {[%emt 0:05:15]} 16. Rac1 {[%emt 0:00:28]} Qb6 {[%emt 0:03:24]} 17. e5 {[%emt 0:01:53]} Be7 {[%emt 0:05:53]} 18. exf6 {[%emt 0:14:16]} Qxf6 {[%emt 0:00:19]} 19. Ba4+ {[%emt 0:01:14]} Kf8 {[%emt 0:00:06]} 20. Qg3 {[%emt 0:01:29]} Ne6 {[%emt 0:02:21]} 21. Be5 {[%emt 0:02:04]} Qg5 {[%emt 0:01:20]} 22. Bb3 {[%emt 0:01:22]} Bf6 {[%emt 0:09:37]} 23. Qxg5 {[%emt 0:04:07]} Bxg5 {[%emt 0:02:48]} 24. Rcd1 {[%emt 0:01:04]} Bf4 {[%emt 0:07:38]} 25. Bxd4 {[%emt 0:01:42]} Rd8 {[%emt 0:01:24]} 26. Bc5+ {[%emt 0:04:15]} Ke8 {[%emt 0:00:10]} 27. Bb6 {[%emt 0:00:41]} Rxd1 {[%emt 0:00:35]} 28. Rxd1 {[%emt 0:00:06]} Ke7 {[%emt 0:00:11]} 29. g3 {[%emt 0:00:38]} Bd6 {[%emt 0:00:24]} 30. Rc1 {[%emt 0:00:43]} Be5 {[%emt 0:00:41]} 31. Rc2 {[%emt 0:02:03]} g5 {[%emt 0:00:07]} 32. Re2 {[%emt 0:01:20]} Bd6 {[%emt 0:00:14]} 33. Rc2 {[%emt 0:01:06]} h5 {[%emt 0:00:41]} 34. Kg2 {[%emt 0:00:50]} h4 {[%emt 0:00:15]} 35. Be3 {[%emt 0:00:52]} hxg3 {[%emt 0:00:38]} 36. fxg3 {[%emt 0:00:27]} Rg8 {[%emt 0:00:43]} 37. Bxe6 {[%emt 0:00:41]} Kxe6 {[%emt 0:00:27]} 38. Kf3 {[%emt 0:01:34]} f5 {[%emt 0:00:43]} 39. Re2 {[%emt 0:01:05]} Kd5 {[%emt 0:00:46]} 40. Rd2+ {[%emt 0:00:14]} Ke6 {[%emt 0:00:18]} 41. Re2 {[%emt 0:00:17]} Kf6 {[%emt 0:00:42]} 42. Bd4+ {[%emt 0:00:23]} Kf7 {[%emt 0:00:06]} 43. Be5 {[%emt 0:00:38]} Be7 {[%emt 0:00:48]} 44. Bc3 {[%emt 0:01:13]} Rd8 {[%emt 0:00:10]} 45. Rd2 {[%emt 0:00:19]} Rxd2 {[%emt 0:01:00]} 46. Bxd2 {[%emt 0:00:26]} Bf6 {[%emt 0:01:19]} 47. Bc3 {[%emt 0:00:14]} Be7 {[%emt 0:12:37]} 1/2-1/2